{"text_format":"3","workbook":"xlsx","n_sheets":1,"sheets":["Danh sách kiểm kê"],"not_rendered":{"images":1,"defined_names":3},"read":"whole","date_system":"1900"}

{"sheet":"Danh sách kiểm kê","index":0,"n_rows":28,"n_cols":13,"rows_kept":28}
[{"$nulls":12}," "]
[{"$nulls":10},"Tô sáng các mục để đặt hàng lại?","Có"]
[null,"Để đặt hàng lại","ID Kiểm kê","Tên","Mô tả","Đơn giá","Số lượng hàng còn","Giá trị kiểm kê","Mức độ Đặt hàng lại","Thời gian Đặt hàng lại tính theo Ngày","Số lượng hàng đặt lại","Dừng nhập hàng?"]
[null,{"$f":"IFERROR((Bảng_Danh_sách_Kiểm_kê[[#This Row],[Số lượng hàng còn]]<=Bảng_Danh_sách_Kiểm_kê[[#This Row],[Mức độ Đặt hàng lại]])*(Bảng_Danh_sách_Kiểm_kê[[#This Row],[Dừng nhập hàng?]]=\"\")*valHighlight,0)","v":1},"IN0001","Mục 1","Mô tả 1",{"v":51,"d":"51.00 ₫"},25,{"$f":"Bảng_Danh_sách_Kiểm_kê[[#This Row],[Đơn giá]]*Bảng_Danh_sách_Kiểm_kê[[#This Row],[Số lượng hàng còn]]","v":{"v":1275,"d":"1,275.00 ₫"}},29,13,50]
[null,{"$f":"IFERROR((Bảng_Danh_sách_Kiểm_kê[[#This Row],[Số lượng hàng còn]]<=Bảng_Danh_sách_Kiểm_kê[[#This Row],[Mức độ Đặt hàng lại]])*(Bảng_Danh_sách_Kiểm_kê[[#This Row],[Dừng nhập hàng?]]=\"\")*valHighlight,0)","v":1},"IN0002","Mục 2","Mô tả 2",{"v":93,"d":"93.00 ₫"},132,{"$f":"Bảng_Danh_sách_Kiểm_kê[[#This Row],[Đơn giá]]*Bảng_Danh_sách_Kiểm_kê[[#This Row],[Số lượng hàng còn]]","v":{"v":12276,"d":"12,276.00 ₫"}},231,4,50]
[null,{"$f":"IFERROR((Bảng_Danh_sách_Kiểm_kê[[#This Row],[Số lượng hàng còn]]<=Bảng_Danh_sách_Kiểm_kê[[#This Row],[Mức độ Đặt hàng lại]])*(Bảng_Danh_sách_Kiểm_kê[[#This Row],[Dừng nhập hàng?]]=\"\")*valHighlight,0)","v":0},"IN0003","Mục 3","Mô tả 3",{"v":57,"d":"57.00 ₫"},151,{"$f":"Bảng_Danh_sách_Kiểm_kê[[#This Row],[Đơn giá]]*Bảng_Danh_sách_Kiểm_kê[[#This Row],[Số lượng hàng còn]]","v":{"v":8607,"d":"8,607.00 ₫"}},114,11,150]
[null,{"$f":"IFERROR((Bảng_Danh_sách_Kiểm_kê[[#This Row],[Số lượng hàng còn]]<=Bảng_Danh_sách_Kiểm_kê[[#This Row],[Mức độ Đặt hàng lại]])*(Bảng_Danh_sách_Kiểm_kê[[#This Row],[Dừng nhập hàng?]]=\"\")*valHighlight,0)","v":0},"IN0004","Mục 4","Mô tả 4",{"v":19,"d":"19.00 ₫"},186,{"$f":"Bảng_Danh_sách_Kiểm_kê[[#This Row],[Đơn giá]]*Bảng_Danh_sách_Kiểm_kê[[#This Row],[Số lượng hàng còn]]","v":{"v":3534,"d":"3,534.00 ₫"}},158,6,50]
[null,{"$f":"IFERROR((Bảng_Danh_sách_Kiểm_kê[[#This Row],[Số lượng hàng còn]]<=Bảng_Danh_sách_Kiểm_kê[[#This Row],[Mức độ Đặt hàng lại]])*(Bảng_Danh_sách_Kiểm_kê[[#This Row],[Dừng nhập hàng?]]=\"\")*valHighlight,0)","v":0},"IN0005","Mục 5","Mô tả 5",{"v":75,"d":"75.00 ₫"},62,{"$f":"Bảng_Danh_sách_Kiểm_kê[[#This Row],[Đơn giá]]*Bảng_Danh_sách_Kiểm_kê[[#This Row],[Số lượng hàng còn]]","v":{"v":4650,"d":"4,650.00 ₫"}},39,12,50]
[null,{"$f":"IFERROR((Bảng_Danh_sách_Kiểm_kê[[#This Row],[Số lượng hàng còn]]<=Bảng_Danh_sách_Kiểm_kê[[#This Row],[Mức độ Đặt hàng lại]])*(Bảng_Danh_sách_Kiểm_kê[[#This Row],[Dừng nhập hàng?]]=\"\")*valHighlight,0)","v":1},"IN0006","Mục 6","Mô tả 6",{"v":11,"d":"11.00 ₫"},5,{"$f":"Bảng_Danh_sách_Kiểm_kê[[#This Row],[Đơn giá]]*Bảng_Danh_sách_Kiểm_kê[[#This Row],[Số lượng hàng còn]]","v":{"v":55,"d":"55.00 ₫"}},9,13,150]
[null,{"$f":"IFERROR((Bảng_Danh_sách_Kiểm_kê[[#This Row],[Số lượng hàng còn]]<=Bảng_Danh_sách_Kiểm_kê[[#This Row],[Mức độ Đặt hàng lại]])*(Bảng_Danh_sách_Kiểm_kê[[#This Row],[Dừng nhập hàng?]]=\"\")*valHighlight,0)","v":0},"IN0007","Mục 7","Mô tả 7",{"v":56,"d":"56.00 ₫"},58,{"$f":"Bảng_Danh_sách_Kiểm_kê[[#This Row],[Đơn giá]]*Bảng_Danh_sách_Kiểm_kê[[#This Row],[Số lượng hàng còn]]","v":{"v":3248,"d":"3,248.00 ₫"}},109,7,100,"Có"]
[null,{"$f":"IFERROR((Bảng_Danh_sách_Kiểm_kê[[#This Row],[Số lượng hàng còn]]<=Bảng_Danh_sách_Kiểm_kê[[#This Row],[Mức độ Đặt hàng lại]])*(Bảng_Danh_sách_Kiểm_kê[[#This Row],[Dừng nhập hàng?]]=\"\")*valHighlight,0)","v":1},"IN0008","Mục 8","Mô tả 8",{"v":38,"d":"38.00 ₫"},101,{"$f":"Bảng_Danh_sách_Kiểm_kê[[#This Row],[Đơn giá]]*Bảng_Danh_sách_Kiểm_kê[[#This Row],[Số lượng hàng còn]]","v":{"v":3838,"d":"3,838.00 ₫"}},162,3,100]
[null,{"$f":"IFERROR((Bảng_Danh_sách_Kiểm_kê[[#This Row],[Số lượng hàng còn]]<=Bảng_Danh_sách_Kiểm_kê[[#This Row],[Mức độ Đặt hàng lại]])*(Bảng_Danh_sách_Kiểm_kê[[#This Row],[Dừng nhập hàng?]]=\"\")*valHighlight,0)","v":0},"IN0009","Mục 9","Mô tả 9",{"v":59,"d":"59.00 ₫"},122,{"$f":"Bảng_Danh_sách_Kiểm_kê[[#This Row],[Đơn giá]]*Bảng_Danh_sách_Kiểm_kê[[#This Row],[Số lượng hàng còn]]","v":{"v":7198,"d":"7,198.00 ₫"}},82,3,150]
[null,{"$f":"IFERROR((Bảng_Danh_sách_Kiểm_kê[[#This Row],[Số lượng hàng còn]]<=Bảng_Danh_sách_Kiểm_kê[[#This Row],[Mức độ Đặt hàng lại]])*(Bảng_Danh_sách_Kiểm_kê[[#This Row],[Dừng nhập hàng?]]=\"\")*valHighlight,0)","v":1},"IN0010","Mục 10","Mô tả 10",{"v":50,"d":"50.00 ₫"},175,{"$f":"Bảng_Danh_sách_Kiểm_kê[[#This Row],[Đơn giá]]*Bảng_Danh_sách_Kiểm_kê[[#This Row],[Số lượng hàng còn]]","v":{"v":8750,"d":"8,750.00 ₫"}},283,8,150]
[null,{"$f":"IFERROR((Bảng_Danh_sách_Kiểm_kê[[#This Row],[Số lượng hàng còn]]<=Bảng_Danh_sách_Kiểm_kê[[#This Row],[Mức độ Đặt hàng lại]])*(Bảng_Danh_sách_Kiểm_kê[[#This Row],[Dừng nhập hàng?]]=\"\")*valHighlight,0)","v":1},"IN0011","Mục 11","Mô tả 11",{"v":59,"d":"59.00 ₫"},176,{"$f":"Bảng_Danh_sách_Kiểm_kê[[#This Row],[Đơn giá]]*Bảng_Danh_sách_Kiểm_kê[[#This Row],[Số lượng hàng còn]]","v":{"v":10384,"d":"10,384.00 ₫"}},229,1,100]
[null,{"$f":"IFERROR((Bảng_Danh_sách_Kiểm_kê[[#This Row],[Số lượng hàng còn]]<=Bảng_Danh_sách_Kiểm_kê[[#This Row],[Mức độ Đặt hàng lại]])*(Bảng_Danh_sách_Kiểm_kê[[#This Row],[Dừng nhập hàng?]]=\"\")*valHighlight,0)","v":1},"IN0012","Mục 12","Mô tả 12",{"v":18,"d":"18.00 ₫"},22,{"$f":"Bảng_Danh_sách_Kiểm_kê[[#This Row],[Đơn giá]]*Bảng_Danh_sách_Kiểm_kê[[#This Row],[Số lượng hàng còn]]","v":{"v":396,"d":"396.00 ₫"}},36,12,50]
[null,{"$f":"IFERROR((Bảng_Danh_sách_Kiểm_kê[[#This Row],[Số lượng hàng còn]]<=Bảng_Danh_sách_Kiểm_kê[[#This Row],[Mức độ Đặt hàng lại]])*(Bảng_Danh_sách_Kiểm_kê[[#This Row],[Dừng nhập hàng?]]=\"\")*valHighlight,0)","v":1},"IN0013","Mục 13","Mô tả 13",{"v":26,"d":"26.00 ₫"},72,{"$f":"Bảng_Danh_sách_Kiểm_kê[[#This Row],[Đơn giá]]*Bảng_Danh_sách_Kiểm_kê[[#This Row],[Số lượng hàng còn]]","v":{"v":1872,"d":"1,872.00 ₫"}},102,9,100]
[null,{"$f":"IFERROR((Bảng_Danh_sách_Kiểm_kê[[#This Row],[Số lượng hàng còn]]<=Bảng_Danh_sách_Kiểm_kê[[#This Row],[Mức độ Đặt hàng lại]])*(Bảng_Danh_sách_Kiểm_kê[[#This Row],[Dừng nhập hàng?]]=\"\")*valHighlight,0)","v":1},"IN0014","Mục 14","Mô tả 14",{"v":42,"d":"42.00 ₫"},62,{"$f":"Bảng_Danh_sách_Kiểm_kê[[#This Row],[Đơn giá]]*Bảng_Danh_sách_Kiểm_kê[[#This Row],[Số lượng hàng còn]]","v":{"v":2604,"d":"2,604.00 ₫"}},83,2,100]
[null,{"$f":"IFERROR((Bảng_Danh_sách_Kiểm_kê[[#This Row],[Số lượng hàng còn]]<=Bảng_Danh_sách_Kiểm_kê[[#This Row],[Mức độ Đặt hàng lại]])*(Bảng_Danh_sách_Kiểm_kê[[#This Row],[Dừng nhập hàng?]]=\"\")*valHighlight,0)","v":0},"IN0015","Mục 15","Mô tả 15",{"v":32,"d":"32.00 ₫"},46,{"$f":"Bảng_Danh_sách_Kiểm_kê[[#This Row],[Đơn giá]]*Bảng_Danh_sách_Kiểm_kê[[#This Row],[Số lượng hàng còn]]","v":{"v":1472,"d":"1,472.00 ₫"}},23,15,50]
[null,{"$f":"IFERROR((Bảng_Danh_sách_Kiểm_kê[[#This Row],[Số lượng hàng còn]]<=Bảng_Danh_sách_Kiểm_kê[[#This Row],[Mức độ Đặt hàng lại]])*(Bảng_Danh_sách_Kiểm_kê[[#This Row],[Dừng nhập hàng?]]=\"\")*valHighlight,0)","v":1},"IN0016","Mục 16","Mô tả 16",{"v":90,"d":"90.00 ₫"},96,{"$f":"Bảng_Danh_sách_Kiểm_kê[[#This Row],[Đơn giá]]*Bảng_Danh_sách_Kiểm_kê[[#This Row],[Số lượng hàng còn]]","v":{"v":8640,"d":"8,640.00 ₫"}},180,3,50]
[null,{"$f":"IFERROR((Bảng_Danh_sách_Kiểm_kê[[#This Row],[Số lượng hàng còn]]<=Bảng_Danh_sách_Kiểm_kê[[#This Row],[Mức độ Đặt hàng lại]])*(Bảng_Danh_sách_Kiểm_kê[[#This Row],[Dừng nhập hàng?]]=\"\")*valHighlight,0)","v":0},"IN0017","Mục 17","Mô tả 17",{"v":97,"d":"97.00 ₫"},57,{"$f":"Bảng_Danh_sách_Kiểm_kê[[#This Row],[Đơn giá]]*Bảng_Danh_sách_Kiểm_kê[[#This Row],[Số lượng hàng còn]]","v":{"v":5529,"d":"5,529.00 ₫"}},98,12,50,"Có"]
[null,{"$f":"IFERROR((Bảng_Danh_sách_Kiểm_kê[[#This Row],[Số lượng hàng còn]]<=Bảng_Danh_sách_Kiểm_kê[[#This Row],[Mức độ Đặt hàng lại]])*(Bảng_Danh_sách_Kiểm_kê[[#This Row],[Dừng nhập hàng?]]=\"\")*valHighlight,0)","v":1},"IN0018","Mục 18","Mô tả 18",{"v":12,"d":"12.00 ₫"},6,{"$f":"Bảng_Danh_sách_Kiểm_kê[[#This Row],[Đơn giá]]*Bảng_Danh_sách_Kiểm_kê[[#This Row],[Số lượng hàng còn]]","v":{"v":72,"d":"72.00 ₫"}},7,13,50]
[null,{"$f":"IFERROR((Bảng_Danh_sách_Kiểm_kê[[#This Row],[Số lượng hàng còn]]<=Bảng_Danh_sách_Kiểm_kê[[#This Row],[Mức độ Đặt hàng lại]])*(Bảng_Danh_sách_Kiểm_kê[[#This Row],[Dừng nhập hàng?]]=\"\")*valHighlight,0)","v":1},"IN0019","Mục 19","Mô tả 19",{"v":82,"d":"82.00 ₫"},143,{"$f":"Bảng_Danh_sách_Kiểm_kê[[#This Row],[Đơn giá]]*Bảng_Danh_sách_Kiểm_kê[[#This Row],[Số lượng hàng còn]]","v":{"v":11726,"d":"11,726.00 ₫"}},164,12,150]
[null,{"$f":"IFERROR((Bảng_Danh_sách_Kiểm_kê[[#This Row],[Số lượng hàng còn]]<=Bảng_Danh_sách_Kiểm_kê[[#This Row],[Mức độ Đặt hàng lại]])*(Bảng_Danh_sách_Kiểm_kê[[#This Row],[Dừng nhập hàng?]]=\"\")*valHighlight,0)","v":0},"IN0020","Mục 20","Mô tả 20",{"v":16,"d":"16.00 ₫"},124,{"$f":"Bảng_Danh_sách_Kiểm_kê[[#This Row],[Đơn giá]]*Bảng_Danh_sách_Kiểm_kê[[#This Row],[Số lượng hàng còn]]","v":{"v":1984,"d":"1,984.00 ₫"}},113,14,50]
[null,{"$f":"IFERROR((Bảng_Danh_sách_Kiểm_kê[[#This Row],[Số lượng hàng còn]]<=Bảng_Danh_sách_Kiểm_kê[[#This Row],[Mức độ Đặt hàng lại]])*(Bảng_Danh_sách_Kiểm_kê[[#This Row],[Dừng nhập hàng?]]=\"\")*valHighlight,0)","v":0},"IN0021","Mục 21","Mô tả 21",{"v":19,"d":"19.00 ₫"},112,{"$f":"Bảng_Danh_sách_Kiểm_kê[[#This Row],[Đơn giá]]*Bảng_Danh_sách_Kiểm_kê[[#This Row],[Số lượng hàng còn]]","v":{"v":2128,"d":"2,128.00 ₫"}},75,11,50]
[null,{"$f":"IFERROR((Bảng_Danh_sách_Kiểm_kê[[#This Row],[Số lượng hàng còn]]<=Bảng_Danh_sách_Kiểm_kê[[#This Row],[Mức độ Đặt hàng lại]])*(Bảng_Danh_sách_Kiểm_kê[[#This Row],[Dừng nhập hàng?]]=\"\")*valHighlight,0)","v":0},"IN0022","Mục 22","Mô tả 22",{"v":24,"d":"24.00 ₫"},182,{"$f":"Bảng_Danh_sách_Kiểm_kê[[#This Row],[Đơn giá]]*Bảng_Danh_sách_Kiểm_kê[[#This Row],[Số lượng hàng còn]]","v":{"v":4368,"d":"4,368.00 ₫"}},132,15,150]
[null,{"$f":"IFERROR((Bảng_Danh_sách_Kiểm_kê[[#This Row],[Số lượng hàng còn]]<=Bảng_Danh_sách_Kiểm_kê[[#This Row],[Mức độ Đặt hàng lại]])*(Bảng_Danh_sách_Kiểm_kê[[#This Row],[Dừng nhập hàng?]]=\"\")*valHighlight,0)","v":0},"IN0023","Mục 23","Mô tả 23",{"v":29,"d":"29.00 ₫"},106,{"$f":"Bảng_Danh_sách_Kiểm_kê[[#This Row],[Đơn giá]]*Bảng_Danh_sách_Kiểm_kê[[#This Row],[Số lượng hàng còn]]","v":{"v":3074,"d":"3,074.00 ₫"}},142,1,150,"Có"]
[null,{"$f":"IFERROR((Bảng_Danh_sách_Kiểm_kê[[#This Row],[Số lượng hàng còn]]<=Bảng_Danh_sách_Kiểm_kê[[#This Row],[Mức độ Đặt hàng lại]])*(Bảng_Danh_sách_Kiểm_kê[[#This Row],[Dừng nhập hàng?]]=\"\")*valHighlight,0)","v":0},"IN0024","Mục 24","Mô tả 24",{"v":75,"d":"75.00 ₫"},173,{"$f":"Bảng_Danh_sách_Kiểm_kê[[#This Row],[Đơn giá]]*Bảng_Danh_sách_Kiểm_kê[[#This Row],[Số lượng hàng còn]]","v":{"v":12975,"d":"12,975.00 ₫"}},127,9,100]
[null,{"$f":"IFERROR((Bảng_Danh_sách_Kiểm_kê[[#This Row],[Số lượng hàng còn]]<=Bảng_Danh_sách_Kiểm_kê[[#This Row],[Mức độ Đặt hàng lại]])*(Bảng_Danh_sách_Kiểm_kê[[#This Row],[Dừng nhập hàng?]]=\"\")*valHighlight,0)","v":0},"IN0025","Mục 25","Mô tả 25",{"v":14,"d":"14.00 ₫"},28,{"$f":"Bảng_Danh_sách_Kiểm_kê[[#This Row],[Đơn giá]]*Bảng_Danh_sách_Kiểm_kê[[#This Row],[Số lượng hàng còn]]","v":{"v":392,"d":"392.00 ₫"}},21,8,50]